lending/lending_fUSD_20250130
["ID","MTS","AMOUNT","RATE_DAILY","PERIOD"]
[350942416,1738223488394,-542.64,0.00021369,4]
[350942417,1738223488403,-500.0,0.00021369,4]
[350942418,1738223488412,-542.64,0.00021369,4]
[350942419,1738223488421,-500.0,0.00021369,4]
[350942420,1738223488430,-542.64,0.00021369,4]
[350942421,1738223488440,-500.0,0.00021369,4]
[350942422,1738223488449,-500.0,0.00021369,4]
[350942423,1738223488458,-500.0,0.00021369,4]
[350942424,1738223488467,-500.0,0.00021369,4]
[350942425,1738223488476,-542.64,0.00021369,4]
[350942426,1738223488486,-500.0,0.00021369,4]
[350942427,1738223488496,-500.0,0.00021369,4]
[350942428,1738223488506,-244.611362,0.00021369,4]
[350942429,1738223488517,-500.0,0.00021369,4]
[350942430,1738223488526,-500.0,0.00021369,4]
[350942431,1738223488535,-542.64,0.00021369,4]
[350942432,1738223488544,-505.59562565,0.00021369,4]
[350942433,1738223488553,-500.0,0.00021369,4]
[350942434,1738223488562,-500.0,0.00021369,4]
[350942435,1738223488571,-244.611362,0.00021369,4]
[350942436,1738223488579,-542.64,0.00021369,4]
[350942437,1738223488589,-3416.28442,0.00021369,4]
[350942438,1738223488598,-500.0,0.00021369,4]
[350942439,1738223488608,-500.0,0.00021369,4]
[350942440,1738223488617,-244.611362,0.00021369,4]
[350942441,1738223488626,-542.64,0.00021369,4]
[350942442,1738223488635,-500.0,0.00021369,4]
[350942443,1738223488645,-500.0,0.00021369,4]
[350942444,1738223488654,-3416.28442,0.00021369,4]
[350942445,1738223488663,-244.611362,0.00021369,4]
[350942446,1738223488673,-500.0,0.00021369,4]
[350942447,1738223488683,-542.64,0.00021369,4]
[350942448,1738223488692,-500.0,0.00021369,4]
[350942449,1738223488701,-385.99124815,0.00021369,4]
[350942450,1738223488710,-500.0,0.00021369,4]
[350942451,1738223488719,-3416.28442,0.00021369,4]
[350942452,1738223488729,-542.64,0.00021369,4]
[350942453,1738223488738,-244.611362,0.00021369,4]
[350942454,1738223488748,-500.0,0.00021369,4]
[350942455,1738223488757,-500.0,0.00021369,4]
[350942456,1738223488766,-500.0,0.00021369,4]
[350942457,1738223488777,-500.0,0.00021369,4]
[350942458,1738223488786,-542.64,0.00021369,4]
[350942459,1738223488795,-3416.28442,0.00021369,4]
[350942460,1738223488806,-500.0,0.00021369,4]
[350942461,1738223488815,-500.0,0.00021369,4]
[350942462,1738223488824,-244.611362,0.00021369,4]
[350942463,1738223488834,-542.64,0.00021369,4]
[350942464,1738223488843,-500.0,0.00021369,4]
[350942465,1738223488852,-3416.28442,0.00021369,4]
[350942466,1738223488862,-285.43,0.00021369,4]
[350942467,1738223488871,-500.0,0.00021369,4]
[350942468,1738223488880,-542.64,0.00021369,4]
[350942469,1738223488890,-500.0,0.00021369,4]
[350942470,1738223488900,-244.611362,0.00021369,4]
[350942471,1738223489043,-534.0201204,0.00021369,4]
[350942472,1738223489054,-500.0,0.00021369,4]
[350942473,1738223489064,-3416.28442,0.00021369,4]
[350942474,1738223489078,-542.66401516,0.00021369,4]
[350942475,1738223489087,-500.0,0.00021369,4]
[350942476,1738223489097,-500.0,0.00021369,4]
[350942477,1738223489107,-244.611362,0.00021369,4]
[350942478,1738223489118,-500.0,0.00021369,4]
[350942479,1738223489127,-500.0,0.00021369,4]
[350942480,1738223489137,-3416.28442,0.00021369,4]
[350942481,1738223489148,-500.0,0.00021369,4]
[350942482,1738223489158,-500.0,0.00021369,4]
[350942483,1738223489167,-479.93512258,0.00021369,4]
[350942484,1738223489208,-20.06487742,0.00021369,4]
[350942485,1738223489218,-481.35212258,0.00021369,4]
[350942486,1738223489395,-311.13376032,0.00018493,2]
[350942487,1738223489464,-362.86623968,0.00018493,2]
[350942488,1738223489474,-1897.416584,0.00021,2]
[350942489,1738223489484,-18.64787742,0.00021369,4]
[350942490,1738223489498,-500.0,0.00021369,4]
[350942491,1738223489507,-244.611362,0.00021369,4]
[350942492,1738223489516,-112.31304833,0.00021369,4]
[350942493,1738223493153,398.96023649,0.00023,120]
[350942494,1738223789960,-180.83,0.00010137,2]
[350942495,1738224031403,150.0,0.00021513,120]
[350942496,1738224090754,150.0,0.00022712,120]
[350942497,1738224150752,150.0,0.00022379,120]
[350942498,1738224210779,150.0,0.00022108,120]
[350942500,1738224270900,150.0,0.00021487,120]
[350942502,1738224331553,150.0,0.00021877,120]
[350942504,1738224390710,150.0,0.00021129,120]
[350942505,1738224451830,150.0,0.00021541,120]
[350942510,1738224570721,150.0,0.00020587,120]
[350942519,1738224631595,-295.95409882,0.00011991,2]
[350942520,1738224631605,-150.0,0.0001206,2]
[350942521,1738224631615,-150.0,0.00012802,2]
[350942522,1738224631625,-278.90411411,0.00013,2]
[350942523,1738224631700,-271.09588589,0.00013,2]
[350942524,1738224631710,-150.0,0.0001319,2]
[350942525,1738224631719,-181.9,0.00013699,2]
[350942526,1738224631729,-600.0,0.00015,2]
[350942527,1738224631739,-603.49617554,0.00015427,2]
[350942528,1738224631749,-368.28,0.00015527,2]
[350942529,1738224631759,-650.0,0.00017,2]
[350942530,1738224631774,-1018.03,0.00017198,2]
[350942531,1738224631784,-371.95,0.00018147,2]
[350942532,1738224631794,-500.0,0.00018329,2]
[350942533,1738224631804,-759.43,0.00018888,2]
[350942534,1738224631814,-150.0,0.00018888,2]
[350942535,1738224631825,-500.0,0.00018929,2]
[350942536,1738224631835,-158.045666,0.00018934,2]
[350942537,1738224631845,-1000.0,0.00018934,2]
[350942538,1738224631855,-700.0,0.00019,2]
[350942539,1738224631865,-500.0,0.00019029,2]
[350942540,1738224631875,-300.0,0.00019128,2]
[350942541,1738224631885,-500.0,0.00019129,2]
[350942542,1738224631894,-500.0,0.00019164,2]
[350942543,1738224631904,-500.0,0.00019164,2]
[350942544,1738224631915,-23900.0,0.00019191,2]
[350942545,1738224631925,-3229.78,0.00019229,2]
[350942546,1738224631935,-500.0,0.00019229,2]
[350942547,1738224631944,-150.0,0.00019299,2]
[350942548,1738224631955,-1500.0,0.00019299,2]
[350942549,1738224631964,-500.0,0.00019329,2]
[350942550,1738224631974,-250.0,0.00019346,2]
[350942551,1738224631984,-161.11,0.00019381,2]
[350942552,1738224631994,-500.0,0.00019429,2]
[350942553,1738224632004,-1018.03,0.00019462,2]
[350942554,1738224632015,-316.94,0.000195,2]
[350942555,1738224632025,-312.08,0.00019527,2]
[350942556,1738224632036,-500.0,0.00019529,2]
[350942557,1738224632046,-759.43,0.00019587,2]
[350942558,1738224632056,-500.0,0.00019629,2]
[350942559,1738224632066,-1887.63016645,0.00019671,2]
[350942560,1738224632077,-1887.63016645,0.00019685,2]
[350942561,1738224632087,-1887.63016645,0.00019697,2]
[350942562,1738224632096,-500.0,0.00019729,2]
[350942563,1738224632106,-150.3,0.00019738,2]
[350942564,1738224632117,-1887.63016645,0.00019752,2]
[350942566,1738224632128,-3329.87223814,0.0001981,2]
[350942568,1738224632137,-500.0,0.00019829,2]
[350942570,1738224632147,-1716.53,0.0001984,2]
[350942572,1738224632157,-4000.0,0.00019848,2]
[350942574,1738224632167,-200.0,0.00019874,2]
[350942576,1738224632176,-983.66,0.00020055,2]
[350942578,1738224632186,-298.38,0.00020055,2]
[350942580,1738224632196,-150.0,0.00020055,2]
[350942582,1738224632206,-437.67,0.00020055,2]
[350942584,1738224632216,-150.0,0.00020055,2]
[350942586,1738224632229,-452.78,0.00020055,2]
[350942588,1738224632239,-983.66,0.00020055,2]
[350942590,1738224632249,-298.38,0.00020055,2]
[350942592,1738224632259,-150.0,0.00020055,2]
[350942594,1738224632270,-983.66,0.00020055,2]
[350942597,1738224632285,-150.0,0.00020055,2]
[350942599,1738224632298,-150.0,0.00020055,2]
[350942601,1738224632311,-298.38,0.00020055,2]
[350942603,1738224632321,-150.0,0.00020055,2]
[350942605,1738224632331,-599.07,0.00020055,2]
[350942607,1738224632341,-653.49,0.00020055,2]
[350942609,1738224632351,-150.0,0.00020055,2]
[350942611,1738224632361,-150.0,0.00020055,2]
[350942613,1738224632371,-150.0,0.00020055,2]
[350942615,1738224632382,-150.0,0.00020055,2]
[350942617,1738224632392,-150.0,0.00020055,2]
[350942619,1738224632401,-1959.53,0.00020145,2]
[350942621,1738224632411,-500.0,0.0002026,2]
[350942623,1738224632421,-1937.851,0.0002026,2]
[350942625,1738224632431,-166.92610789,0.0002026,2]
[350942627,1738224632441,-759.43,0.00020286,2]
[350942629,1738224632454,-150.3,0.00020364,2]
[350942632,1738224632464,-316.94,0.00020475,2]
[350942634,1738224632475,-300.0,0.00020478,2]
[350942636,1738224632486,-150.0,0.00020478,2]
[350942638,1738224632496,-596.76,0.00020478,2]
[350942640,1738224632506,-876.03,0.00020478,2]
[350942642,1738224632516,-1967.32,0.00020478,2]
[350942644,1738224632527,-3000.0,0.000205,2]
[350942646,1738224632538,-420.0,0.00020847,2]
[350942648,1738224632548,-150.0,0.00020877,2]
[350942650,1738224632558,-150.0,0.00020877,2]
[350942652,1738224632568,-150.0,0.00020877,2]
[350942654,1738224632577,-150.0,0.00020877,2]
[350942656,1738224632587,-150.0,0.00020877,2]
[350942658,1738224632597,-150.0,0.00020877,2]
[350942660,1738224632607,-150.0,0.00020877,2]
[350942662,1738224632616,-150.0,0.00020877,2]
[350942664,1738224632626,-150.0,0.00020877,2]
[350942666,1738224632635,-150.0,0.00020877,2]
[350942668,1738224632646,-398.28,0.000209,2]
[350942671,1738224632656,-1563.4637,0.000209,2]
[350942673,1738224632665,-4648.9253,0.000209,2]
[350942675,1738224632675,-1326.0574,0.000209,2]
[350942677,1738224632685,-1025.43434699,0.00020942,2]
[350942679,1738224632694,-1271.0,0.00020967,2]
[350942681,1738224632704,-2021.0,0.00020967,2]
[350942683,1738224632714,-637.0,0.00020967,2]
[350942685,1738224632723,-150.0,0.00020967,2]
[350942687,1738224632732,-566.0,0.00020967,2]
[350942689,1738224632741,-1866.0,0.00020967,2]
[350942691,1738224632751,-782.0,0.00020967,2]
[350942693,1738224632761,-1263.0,0.00020967,2]
[350942695,1738224632771,-2951.0,0.00020967,2]
[350942697,1738224632780,-761.035,0.00020967,2]
[350942699,1738224632790,-538.0,0.00020967,2]
[350942702,1738224632802,-1322.0,0.00020967,2]
[350942704,1738224632816,-150.0,0.00020967,2]
[350942706,1738224632826,-624.476,0.00020967,2]
[350942708,1738224632836,-25724.29589438,0.0002098,7]
[350942710,1738224632846,-759.43,0.00020985,2]
[350942712,1738224632855,-150.3,0.0002099,2]
[350942714,1738224632865,-42745.0,0.00021,2]
[350942716,1738224632875,-750.0,0.00021,2]
[350942718,1738224632884,-150.0,0.00021028,2]
[350942720,1738224632894,-1701.49549472,0.00021083,2]
[350942722,1738224632903,-957.27705,0.0002116,2]
[350942724,1738224632913,-430.41896848,0.00021166,2]
[350942726,1738224632922,-174.3259859,0.00021169,2]
[350942728,1738224632932,-200.6923,0.00021169,2]
[350942730,1738224632941,-5683.3195,0.00021169,2]
[350942732,1738224632951,-10854.8808,0.00021169,2]
[350942734,1738224632960,-1000.0,0.00021169,2]
[350942736,1738224632970,-2500.0,0.00021169,2]
[350942738,1738224632980,-5000.0,0.00021169,2]
[350942740,1738224632989,-500.0,0.00021198,2]
[350942743,1738224632999,-1000.0,0.000212,2]
[350942745,1738224633008,-1000.0,0.000212,2]
[350942747,1738224633018,-1720.0,0.00021223,2]
[350942749,1738224633028,-150.0,0.00021253,2]
[350942751,1738224633038,-2140.65,0.00021259,2]
[350942753,1738224633048,-277.43919351,0.00021263,2]
[350942755,1738224633059,-198.2964777,0.00021269,2]
[350942757,1738224633068,-181.91572405,0.00021269,2]
[350942759,1738224633079,-318.35774738,0.00021269,2]
[350942761,1738224633089,-1801.85306686,0.00021269,2]
[350942763,1738224633099,-895.1297,0.00021269,2]
[350942765,1738224633109,-7441.2323,0.00021269,2]
[350942767,1738224633119,-221.0,0.00021269,2]
[350942769,1738224633130,-500.0,0.00021269,2]
[350942771,1738224633140,-1000.0,0.00021269,2]
[350942773,1738224633150,-5008.0489,0.00021269,2]
[350942775,1738224633161,-39268.5352,0.00021269,2]
[350942778,1738224633171,-368.4157,0.00021269,2]
[350942780,1738224633181,-323.856,0.00021269,2]
[350942782,1738224633191,-261.64622049,0.00021279,2]
[350942784,1738224633201,-318.35774728,0.0002129,2]
[350942786,1738224633210,-1000.0,0.00021301,2]
[350942788,1738224633220,-318.35774728,0.0002131,2]
[350942790,1738224633229,-150.0,0.00021312,2]
[350942792,1738224633240,-181.91572402,0.00021313,2]
[350942794,1738224633250,-318.35774728,0.00021331,2]
[350942796,1738224633260,-318.35774728,0.00021352,2]
[350942798,1738224633271,-500.0,0.00021356,2]
[350942800,1738224633280,-500.0,0.00021356,2]
[350942802,1738224633290,-181.91572402,0.00021356,2]
[350942804,1738224633300,-5887.4226862,0.00021358,2]
[350942806,1738224633310,-3493.01451972,0.00021364,4]
[350942808,1738224633320,-999.0,0.00021368,2]
[350942810,1738224633329,-600.0,0.00021369,2]
[350942812,1738224633339,-500.0,0.00021369,4]
[350942814,1738224633349,-506.26977487,0.00021369,4]
[350942816,1738224633360,-540.04948787,0.00021369,4]
[350942818,1738224633371,-500.0,0.00021369,4]
[350942820,1738224633381,-501.15817012,0.00021369,4]
[350942822,1738224633392,-502.67907495,0.00021369,4]
[350942824,1738224633402,-457.40784889,0.00021369,4]
[350942826,1738224633413,-429.60852725,0.00021369,4]
[350942828,1738224633424,-633.36598933,0.00021369,4]
[350942830,1738224633434,-552.84314401,0.00021369,4]
[350942833,1738224633449,-507.02719521,0.00021369,4]
[350942835,1738224633460,-506.0719043,0.00021369,4]
[350942838,1738224633479,-505.20427672,0.00021369,4]
[350942840,1738224633497,-389.53755556,0.00021369,4]
[350942842,1738224633508,-500.0,0.00021369,4]
[350942845,1738224633520,-500.0,0.00021369,4]
[350942847,1738224633533,-512.72,0.00021369,4]
[350942849,1738224633546,-500.0,0.00021369,4]
[350942851,1738224633556,-503.43781314,0.00021369,4]
[350942852,1738224633568,-500.0,0.00021369,4]
[350942854,1738224633579,-500.0,0.00021369,4]
[350942856,1738224633590,-500.0,0.00021369,4]
[350942858,1738224633602,-500.0,0.00021369,4]
[350942861,1738224633614,-500.0,0.00021369,4]
[350942863,1738224633625,-500.0,0.00021369,4]
[350942865,1738224633636,-500.0,0.00021369,4]
[350942867,1738224633647,-500.0,0.00021369,4]
[350942869,1738224633658,-500.0,0.00021369,4]
[350942871,1738224633669,-521.68110504,0.00021369,4]
[350942873,1738224633679,-500.0,0.00021369,4]
[350942874,1738224633691,-500.0,0.00021369,4]
[350942875,1738224633702,-500.0,0.00021369,4]
[350942876,1738224633713,-500.0,0.00021369,4]
[350942877,1738224633724,-500.0,0.00021369,4]
[350942878,1738224633735,-500.0,0.00021369,4]
[350942879,1738224633746,-500.0,0.00021369,4]
[350942880,1738224633757,-500.0,0.00021369,4]
[350942881,1738224633768,-500.0,0.00021369,4]
[350942882,1738224633779,-500.0,0.00021369,4]
[350942883,1738224633790,-150.9300383,0.00021369,4]
[350942885,1738224633801,-511.480943,0.00021369,4]
[350942887,1738224633812,-500.0,0.00021369,4]
[350942889,1738224633822,-500.0,0.00021369,4]
[350942891,1738224633832,-502.52560926,0.00021369,4]
[350942893,1738224633842,-500.0,0.00021369,4]
[350942895,1738224633853,-500.0,0.00021369,4]
[350942897,1738224633864,-500.0,0.00021369,4]
[350942899,1738224633874,-300.0,0.00021369,4]
[350942902,1738224633885,-500.0,0.00021369,4]
[350942904,1738224633895,-500.0,0.00021369,4]
[350942906,1738224633905,-500.0,0.00021369,4]
[350942908,1738224633916,-500.0,0.00021369,4]
[350942910,1738224633927,-500.0,0.00021369,4]
[350942912,1738224633937,-500.0,0.00021369,4]
[350942914,1738224633948,-500.0,0.00021369,4]
[350942916,1738224633959,-500.0,0.00021369,4]
[350942919,1738224633970,-500.0,0.00021369,4]
[350942921,1738224633985,-500.0,0.00021369,4]
[350942923,1738224633996,-497.0,0.00021369,4]
[350942925,1738224634007,-500.0,0.00021369,4]
[350942927,1738224634017,-501.96511461,0.00021369,4]
[350942929,1738224634028,-500.0,0.00021369,4]
[350942931,1738224634040,-512.87892918,0.00021369,4]
[350942933,1738224634050,-500.0,0.00021369,4]
[350942935,1738224634061,-371.85073813,0.00021369,4]
[350942938,1738224634072,-500.0,0.00021369,4]
[350942940,1738224634082,-500.0,0.00021369,4]
[350942942,1738224634094,-157.58,0.00021369,4]
[350942944,1738224634105,-500.0,0.00021369,4]
[350942946,1738224634115,-500.0,0.00021369,4]
[350942948,1738224634127,-500.0,0.00021369,4]
[350942951,1738224634137,-556.73154308,0.00021369,4]
[350942953,1738224634147,-500.0,0.00021369,4]
[350942955,1738224634157,-500.0,0.00021369,4]
[350942957,1738224634167,-514.31763192,0.00021369,4]
[350942959,1738224634178,-500.0,0.00021369,4]
[350942961,1738224634188,-500.0,0.00021369,4]
[350942963,1738224634198,-500.0,0.00021369,4]
[350942965,1738224634208,-500.0,0.00021369,4]
[350942967,1738224634218,-509.3016155,0.00021369,4]
[350942969,1738224634228,-513.60635605,0.00021369,4]
[350942971,1738224634238,-500.0,0.00021369,4]
[350942973,1738224634249,-500.0,0.00021369,4]
[350942975,1738224634259,-500.0,0.00021369,4]
[350942978,1738224634270,-511.42544225,0.00021369,4]
[350942980,1738224634281,-500.0,0.00021369,4]
[350942982,1738224634294,-500.0,0.00021369,4]
[350942984,1738224634304,-500.0,0.00021369,4]
[350942986,1738224634315,-500.0,0.00021369,4]
[350942988,1738224634325,-500.0,0.00021369,4]
[350942990,1738224634336,-500.0,0.00021369,4]
[350942992,1738224634347,-500.0,0.00021369,4]
[350942994,1738224634357,-561.00009215,0.00021369,4]
[350942996,1738224634368,-500.0,0.00021369,4]
[350943015,1738224634599,-443.021529,0.00021369,4]
[350943016,1738224634609,-500.0,0.00021369,4]
[350943017,1738224634620,-500.0,0.00021369,4]
[350943018,1738224634630,-500.0,0.00021369,4]
[350943019,1738224634641,-526.65785951,0.00021369,4]
[350943020,1738224634651,-500.0,0.00021369,4]
[350943021,1738224634661,-500.0,0.00021369,4]
[350943022,1738224634670,-500.0,0.00021369,4]
[350943023,1738224634680,-500.0,0.00021369,4]
[350943024,1738224634689,-500.0,0.00021369,4]
[350943025,1738224634699,-500.0,0.00021369,4]
[350943026,1738224634708,-327.65354683,0.00021369,4]
[350943027,1738224634718,-495.0,0.00021369,4]
[350943028,1738224634727,-500.0,0.00021369,4]
[350943029,1738224634737,-500.0,0.00021369,4]
[350943030,1738224634747,-505.83648211,0.00021369,4]
[350943031,1738224634756,-500.0,0.00021369,4]
[350943032,1738224634765,-500.0,0.00021369,4]
[350943033,1738224634775,-500.0,0.00021369,4]
[350943034,1738224634784,-500.0,0.00021369,4]
[350943035,1738224634794,-510.80923533,0.00021369,4]
[350943036,1738224634804,-500.0,0.00021369,4]
[350943037,1738224634814,-500.0,0.00021369,4]
[350943038,1738224634824,-500.0,0.00021369,4]
[350943039,1738224634834,-500.0,0.00021369,4]
[350943040,1738224634843,-500.0,0.00021369,4]
[350943041,1738224634852,-517.72524961,0.00021369,4]
[350943042,1738224634862,-500.0,0.00021369,4]
[350943043,1738224634872,-500.0,0.00021369,4]
[350943044,1738224634882,-500.0,0.00021369,4]
[350943045,1738224634892,-502.41960046,0.00021369,4]
[350943046,1738224634902,-500.0,0.00021369,4]
[350943047,1738224634911,-500.0,0.00021369,4]
[350943048,1738224634920,-500.0,0.00021369,4]
[350943049,1738224634929,-500.0,0.00021369,4]
[350943050,1738224634939,-500.0,0.00021369,4]
[350943051,1738224634949,-500.0,0.00021369,4]
[350943052,1738224634958,-500.0,0.00021369,4]
[350943053,1738224634967,-514.97712166,0.00021369,4]
[350943054,1738224634977,-500.0,0.00021369,4]
[350943055,1738224634986,-500.0,0.00021369,4]
[350943056,1738224634995,-500.0,0.00021369,4]
[350943057,1738224635005,-520.5,0.00021369,4]
[350943058,1738224635016,-500.0,0.00021369,4]
[350943059,1738224635025,-509.74615248,0.00021369,4]
[350943060,1738224635035,-500.0,0.00021369,4]
[350943061,1738224635045,-500.0,0.00021369,4]
[350943062,1738224635054,-500.0,0.00021369,4]
[350943063,1738224635064,-221.33404652,0.00021369,4]
[350943064,1738224635074,-500.0,0.00021369,4]
[350943065,1738224635084,-507.34935036,0.00021369,4]
[350943066,1738224635094,-506.70558053,0.00021369,4]
[350943067,1738224635104,-500.0,0.00021369,4]
[350943068,1738224635114,-500.0,0.00021369,4]
[350943069,1738224635124,-500.0,0.00021369,4]
[350943070,1738224635133,-500.0,0.00021369,4]
[350943071,1738224635143,-500.0,0.00021369,4]
[350943072,1738224635153,-500.0,0.00021369,4]
[350943073,1738224635162,-500.0,0.00021369,4]
[350943074,1738224635172,-500.0,0.00021369,4]
[350943075,1738224635181,-500.0,0.00021369,4]
[350943076,1738224635190,-500.0,0.00021369,4]
[350943077,1738224635200,-500.0,0.00021369,4]
[350943078,1738224635210,-376.58169671,0.00021369,4]
[350943079,1738224635219,-500.0,0.00021369,4]
[350943080,1738224635230,-500.0,0.00021369,4]
[350943081,1738224635239,-500.0,0.00021369,4]
[350943082,1738224635249,-500.0,0.00021369,4]
[350943083,1738224635259,-500.0,0.00021369,4]
[350943084,1738224635269,-500.0,0.00021369,4]
[350943085,1738224635279,-500.0,0.00021369,4]
[350943086,1738224635289,-500.0,0.00021369,4]
[350943087,1738224635298,-500.0,0.00021369,4]
[350943088,1738224635308,-500.0,0.00021369,4]
[350943089,1738224635317,-500.0,0.00021369,4]
[350943090,1738224635328,-349.35852741,0.00021369,4]
[350943091,1738224635337,-500.0,0.00021369,4]
[350943092,1738224635347,-500.0,0.00021369,4]
[350943093,1738224635357,-507.60402372,0.00021369,4]
[350943094,1738224635367,-500.0,0.00021369,4]
[350943095,1738224635377,-500.0,0.00021369,4]
[350943096,1738224635386,-500.0,0.00021369,4]
[350943097,1738224635396,-500.0,0.00021369,4]
[350943098,1738224635407,-500.0,0.00021369,4]
[350943099,1738224635417,-500.0,0.00021369,4]
[350943100,1738224635427,-500.0,0.00021369,4]
[350943101,1738224635437,-504.01040152,0.00021369,4]
[350943102,1738224635449,-500.0,0.00021369,4]
[350943103,1738224635459,-500.0,0.00021369,4]
[350943104,1738224635469,-402.10929212,0.00021369,4]
[350943105,1738224635478,-500.0,0.00021369,4]
[350943106,1738224635488,-502.86991388,0.00021369,4]
[350943107,1738224635497,-500.0,0.00021369,4]
[350943108,1738224635507,-500.0,0.00021369,4]
[350943109,1738224635518,-507.99878486,0.00021369,4]
[350943110,1738224635528,-500.0,0.00021369,4]
[350943111,1738224635539,-505.38670809,0.00021369,4]
[350943112,1738224635548,-501.11330917,0.00021369,4]
[350943113,1738224635558,-500.0,0.00021369,4]
[350943114,1738224635567,-516.17183702,0.00021369,4]
[350943115,1738224635577,-502.22744367,0.00021369,4]
[350943116,1738224635587,-505.26148421,0.00021369,4]
[350943117,1738224635597,-500.0,0.00021369,4]
[350943118,1738224635608,-500.0,0.00021369,4]
[350943119,1738224635618,-500.0,0.00021369,4]
[350943120,1738224635628,-500.0,0.00021369,4]
[350943121,1738224635638,-219.3758942,0.00021369,4]
[350943122,1738224635648,-502.82356779,0.00021369,4]
[350943123,1738224635658,-500.0,0.00021369,4]
[350943124,1738224635668,-500.0,0.00021369,4]
[350943125,1738224635678,-500.0,0.00021369,4]
[350943126,1738224635688,-527.39399285,0.00021369,4]
[350943127,1738224635697,-339.2205326,0.00021369,4]
[350943128,1738224635706,-501.43196997,0.00021369,4]
[350943129,1738224635715,-500.0,0.00021369,4]
[350943130,1738224635724,-500.0,0.00021369,4]
[350943131,1738224635733,-500.0,0.00021369,4]
[350943132,1738224635743,-500.0,0.00021369,4]
[350943133,1738224635752,-514.7876532,0.00021369,4]
[350943134,1738224635761,-500.0,0.00021369,4]
[350943135,1738224635771,-500.0,0.00021369,4]
[350943136,1738224635780,-500.0,0.00021369,4]
[350943137,1738224635789,-500.0,0.00021369,4]
[350943138,1738224635800,-500.0,0.00021369,4]
[350943139,1738224635809,-500.0,0.00021369,4]
[350943140,1738224635818,-500.0,0.00021369,4]
[350943141,1738224635828,-500.0,0.00021369,4]
[350943142,1738224635837,-500.0,0.00021369,4]
[350943143,1738224635846,-500.0,0.00021369,4]
[350943144,1738224635856,-500.0,0.00021369,4]
[350943145,1738224635865,-500.0,0.00021369,4]
[350943146,1738224635874,-500.0,0.00021369,4]
[350943147,1738224635884,-500.0,0.00021369,4]
[350943148,1738224635893,-206.34,0.00021369,4]
[350943149,1738224635902,-500.0,0.00021369,4]
[350943150,1738224635911,-500.0,0.00021369,4]
[350943151,1738224635920,-533.82646219,0.00021369,4]
[350943152,1738224635930,-517.20123861,0.00021369,4]
[350943153,1738224635939,-500.0,0.00021369,4]
[350943154,1738224635948,-500.0,0.00021369,4]
[350943155,1738224635958,-500.0,0.00021369,4]
[350943156,1738224635968,-504.66422067,0.00021369,4]
[350943157,1738224635977,-500.0,0.00021369,4]
[350943158,1738224635986,-500.0,0.00021369,4]
[350943159,1738224635995,-500.0,0.00021369,4]
[350943160,1738224636005,-500.0,0.00021369,4]
[350943161,1738224636016,-500.0,0.00021369,4]
[350943162,1738224636027,-500.0,0.00021369,4]
[350943163,1738224636037,-500.0,0.00021369,4]
[350943164,1738224636046,-500.0,0.00021369,4]
[350943165,1738224636056,-500.0,0.00021369,4]
[350943166,1738224636065,-523.15837196,0.00021369,4]